[Event "BPB Limburg Open 2019 Group A"]
[Site "Maastricht, Netherlands"]
[Date "2019.06.09"]
[Round "5.11"]
[White "Schiffer, Stefan"]
[Black "Vandenbussche, Thibaut"]
[Result "1-0"]
[TimeControl "2h + 15 sec/move"]
[WhiteFideId "12984523"]
[BlackFideId "204412"]
[WhiteElo "2239"]
[BlackElo "2442"]

1. e4 {[%clk 02:00:23]} {[%emt 00:00:06]} g6 {[%clk 02:00:08]} {[%emt
00:00:23]} 2. Nf3 {[%clk 02:00:07]} {[%emt 00:00:29]} Bg7 {[%clk 02:00:17]}
{[%emt 00:00:06]} 3. d3 {[%clk 01:59:23]} {[%emt 00:00:58]} c5 {[%clk
01:58:28]} {[%emt 00:02:06]} 4. g3 {[%clk 01:59:16]} {[%emt 00:00:22]} Nc6
{[%clk 01:58:38]} {[%emt 00:00:05]} 5. Bg2 {[%clk 01:58:59]} {[%emt 00:00:32]}
e6 {[%clk 01:58:14]} {[%emt 00:00:39]} 6. O-O {[%clk 01:57:17]} {[%emt
00:01:56]} Nge7 {[%clk 01:57:56]} {[%emt 00:00:34]} 7. c3 {[%clk 01:56:27]}
{[%emt 00:01:05]} O-O {[%clk 01:56:39]} {[%emt 00:01:33]} 8. Be3 {[%clk
01:52:45]} {[%emt 00:03:56]} b6 {[%clk 01:55:45]} {[%emt 00:01:09]} 9. d4
{[%clk 01:48:32]} {[%emt 00:04:28]} Ba6 {[%clk 01:48:26]} {[%emt 00:07:34]} 10.
Re1 {[%clk 01:47:11]} {[%emt 00:01:35]} cxd4 {[%clk 01:48:32]} {[%emt
00:00:11]} 11. Nxd4 {[%clk 01:46:33]} {[%emt 00:00:52]} Ne5 {[%clk 01:45:31]}
{[%emt 00:03:17]} 12. Na3 {[%clk 01:42:44]} {[%emt 00:04:03]} d5 {[%clk
01:39:41]} {[%emt 00:06:06]} 13. Bg5 {[%clk 01:37:07]} {[%emt 00:05:51]} h6
{[%clk 01:17:13]} {[%emt 00:22:43]} 14. Bxe7 {[%clk 01:35:31]} {[%emt
00:01:52]} Qxe7 {[%clk 01:17:27]} {[%emt 00:00:01]} 15. Qa4 {[%clk 01:32:40]}
{[%emt 00:03:05]} Bb7 {[%clk 01:04:24]} {[%emt 00:13:19]} 16. exd5 {[%clk
01:30:07]} {[%emt 00:02:48]} Bxd5 {[%clk 01:04:25]} {[%emt 00:00:14]} 17. Bxd5
{[%clk 01:29:13]} {[%emt 00:01:07]} exd5 {[%clk 01:04:39]} {[%emt 00:00:02]} 18.
f4 {[%clk 01:26:10]} {[%emt 00:03:18]} Qd7 {[%clk 01:04:18]} {[%emt 00:00:36]}
19. Qxd7 {[%clk 01:25:28]} {[%emt 00:00:56]} Nxd7 {[%clk 01:04:27]} {[%emt
00:00:07]} 20. Nc6 {[%clk 01:22:49]} {[%emt 00:02:54]} Nc5 {[%clk 00:59:19]}
{[%emt 00:05:23]} 21. Nb5 {[%clk 01:16:39]} {[%emt 00:06:25]} Rae8 {[%clk
00:47:30]} {[%emt 00:12:04]} 22. Nc7 {[%clk 01:09:27]} {[%emt 00:07:27]} Re4
{[%clk 00:40:10]} {[%emt 00:07:35]} 23. Nxd5 {[%clk 01:08:21]} {[%emt
00:01:20]} Rfe8 {[%clk 00:38:52]} {[%emt 00:01:34]} 24. Rxe4 {[%clk 01:06:35]}
{[%emt 00:02:01]} Rxe4 {[%clk 00:39:00]} {[%emt 00:00:08]} 25. Kf1 {[%clk
01:05:55]} {[%emt 00:00:54]} Na4 {[%clk 00:34:16]} {[%emt 00:05:00]} 26. Re1
{[%clk 01:02:02]} {[%emt 00:04:07]} Re6 {[%clk 00:30:22]} {[%emt 00:04:10]} 27.
Nxa7 {[%clk 00:54:23]} {[%emt 00:07:54]} Nxb2 {[%clk 00:29:31]} {[%emt
00:01:06]} 28. Rxe6 {[%clk 00:53:32]} {[%emt 00:01:05]} fxe6 {[%clk 00:29:40]}
{[%emt 00:00:07]} 29. Nxb6 {[%clk 00:52:32]} {[%emt 00:01:15]} Bxc3 {[%clk
00:29:21]} {[%emt 00:00:35]} 30. Nc6 {[%clk 00:52:09]} {[%emt 00:00:38]} Nd3
{[%clk 00:28:22]} {[%emt 00:01:14]} 31. Nd7 {[%clk 00:50:54]} {[%emt 00:01:30]}
g5 {[%clk 00:19:09]} {[%emt 00:09:27]} 32. fxg5 {[%clk 00:49:59]} {[%emt
00:01:09]} hxg5 {[%clk 00:19:22]} {[%emt 00:00:01]} 33. a4 {[%clk 00:49:39]}
{[%emt 00:00:36]} Ne1 {[%clk 00:08:22]} {[%emt 00:11:16]} 34. a5 {[%clk
00:48:04]} {[%emt 00:01:50]} Bxa5 {[%clk 00:08:22]} {[%emt 00:00:14]} 35. Nxa5
{[%clk 00:48:11]} {[%emt 00:00:08]} Nf3 {[%clk 00:08:31]} {[%emt 00:00:06]} 36.
Kf2 {[%clk 00:46:24]} {[%emt 00:02:02]} Nxh2 {[%clk 00:07:48]} {[%emt
00:00:59]} 37. Ne5 {[%clk 00:46:20]} {[%emt 00:00:18]} Kg7 {[%clk 00:06:01]}
{[%emt 00:02:02]} 38. Kg2 {[%clk 00:46:02]} {[%emt 00:00:33]} Kf6 {[%clk
00:06:10]} {[%emt 00:00:06]} 39. Nac4 {[%clk 00:45:53]} {[%emt 00:00:24]} 1-0

[Event "BPB Limburg Open 2019 Group A"]
[Site "Maastricht, Netherlands"]
[Date "2019.06.09"]
[Round "5.12"]
[White "Leenhouts, Koen"]
[Black "Kett, Tim"]
[Result "1/2-1/2"]
[TimeControl "2h + 15 sec/move"]
[WhiteFideId "1008439"]
[BlackFideId "1801210"]
[WhiteElo "2432"]
[BlackElo "2197"]

1. e4 {[%clk 01:57:34]} {[%emt 00:02:55]} e5 {[%clk 02:00:03]} {[%emt
00:00:27]} 2. Nf3 {[%clk 01:57:38]} {[%emt 00:00:11]} Nc6 {[%clk 02:00:01]}
{[%emt 00:00:17]} 3. Bb5 {[%clk 01:57:39]} {[%emt 00:00:14]} a6 {[%emt
00:00:18]} 4. Ba4 {[%emt 00:00:09]} d6 {[%clk 01:57:27]} {[%emt 00:02:22]} 5.
c3 {[%clk 01:55:43]} {[%emt 00:02:11]} Bd7 {[%clk 01:57:12]} {[%emt 00:00:30]}
6. O-O {[%clk 01:55:03]} {[%emt 00:00:54]} Nf6 {[%clk 01:57:12]} {[%emt
00:00:16]} 7. Re1 {[%clk 01:54:38]} {[%emt 00:00:41]} g6 {[%clk 01:56:59]}
{[%emt 00:00:28]} 8. d4 {[%clk 01:49:44]} {[%emt 00:05:09]} Bg7 {[%clk
01:56:13]} {[%emt 00:01:01]} 9. d5 {[%clk 01:43:43]} {[%emt 00:06:17]} Ne7
{[%clk 01:55:29]} {[%emt 00:00:58]} 10. c4 {[%clk 01:39:58]} {[%emt 00:04:01]}
b5 {[%clk 01:53:19]} {[%emt 00:02:24]} 11. Bc2 {[%clk 01:37:57]} {[%emt
00:02:15]} bxc4 {[%clk 01:51:49]} {[%emt 00:01:46]} 12. Nfd2 {[%clk 01:34:30]}
{[%emt 00:03:41]} O-O {[%clk 01:51:46]} {[%emt 00:00:18]} 13. Nxc4 {[%clk
01:34:25]} {[%emt 00:00:21]} Nh5 {[%clk 01:44:36]} {[%emt 00:07:24]} 14. Nc3
{[%clk 01:30:44]} {[%emt 00:03:56]} f5 {[%clk 01:34:41]} {[%emt 00:10:09]} 15.
f3 {[%clk 01:25:11]} {[%emt 00:05:49]} Nf6 {[%clk 01:25:22]} {[%emt 00:09:34]}
16. Ba4 {[%clk 01:21:24]} {[%emt 00:04:02]} Bc8 {[%clk 01:23:09]} {[%emt
00:02:27]} 17. Qd3 {[%clk 01:13:35]} {[%emt 00:08:04]} Kh8 {[%clk 01:22:40]}
{[%emt 00:00:44]} 18. Bd2 {[%clk 01:12:04]} {[%emt 00:01:48]} fxe4 {[%clk
01:17:03]} {[%emt 00:05:52]} 19. fxe4 {[%clk 01:11:36]} {[%emt 00:00:43]} Neg8
{[%clk 01:17:04]} {[%emt 00:00:14]} 20. Rf1 {[%clk 01:00:09]} {[%emt 00:11:42]}
Bh6 {[%clk 01:13:33]} {[%emt 00:03:46]} 21. b4 {[%clk 00:59:26]} {[%emt
00:00:58]} Nh5 {[%clk 01:09:04]} {[%emt 00:04:44]} 22. Rxf8 {[%clk 00:54:56]}
{[%emt 00:04:46]} Qxf8 {[%clk 01:06:27]} {[%emt 00:02:51]} 23. Rf1 {[%clk
00:55:00]} {[%emt 00:00:11]} Qe7 {[%clk 01:06:21]} {[%emt 00:00:21]} 24. Ne2
{[%clk 00:44:47]} {[%emt 00:10:28]} Bg4 {[%clk 01:05:20]} {[%emt 00:01:15]} 25.
Ne3 {[%clk 00:43:53]} {[%emt 00:01:09]} Bxe2 {[%clk 01:02:33]} {[%emt
00:03:03]} 26. Qxe2 {[%clk 00:44:06]} {[%emt 00:00:03]} Qh4 {[%clk 00:59:23]}
{[%emt 00:03:24]} 27. Nc4 {[%clk 00:37:42]} {[%emt 00:06:38]} Bxd2 {[%clk
00:56:56]} {[%emt 00:02:43]} 28. Nxd2 {[%clk 00:36:57]} {[%emt 00:01:00]} Ngf6
{[%clk 00:55:40]} {[%emt 00:01:29]} 29. Bc6 {[%clk 00:31:06]} {[%emt 00:06:06]}
Rf8 {[%clk 00:51:15]} {[%emt 00:04:41]} 30. Qxa6 {[%clk 00:18:31]} {[%emt
00:12:52]} Nf4 {[%clk 00:50:21]} {[%emt 00:01:07]} 31. g3 {[%clk 00:17:11]}
{[%emt 00:01:35]} Qg4 {[%clk 00:46:29]} {[%emt 00:04:07]} 32. Kh1 {[%clk
00:14:53]} {[%emt 00:02:34]} N6h5 {[%clk 00:43:38]} {[%emt 00:03:04]} 33. gxf4
{[%clk 00:13:35]} {[%emt 00:01:35]} Ng3+ {[%clk 00:42:59]} {[%emt 00:00:54]} 34.
hxg3 {[%clk 00:13:06]} {[%emt 00:00:45]} Qh3+ {[%clk 00:43:05]} {[%emt
00:00:08]} 35. Kg1 {[%clk 00:13:17]} {[%emt 00:00:05]} Qxg3+ {[%clk 00:43:14]}
{[%emt 00:00:06]} 36. Kh1 {[%clk 00:13:25]} {[%emt 00:00:07]} Qh3+ {[%clk
00:42:31]} {[%emt 00:00:58]} 37. Kg1 {[%clk 00:13:38]} {[%emt 00:00:02]} Qg3+
{[%emt 00:00:19]} 1/2-1/2

[ePGN "0.1;DGT LiveChess/2.2.4"]

[Event "BPB Limburg Open 2019 Group A"]
[Site "Maastricht, Netherlands"]
[Date "2019.06.10"]
[Round "6.1"]
[White "Gurevich, Mikhail"]
[Black "Nasuta, Grzegorz"]
[Result "1/2-1/2"]
[TimeControl "2h + 15 sec/move"]
[WhiteFideId "200930"]
[BlackFideId "1141686"]
[WhiteElo "2579"]
[BlackElo "2518"]

1. c4 {[%clk 01:59:08]} {[%emt 00:01:21]} g6 {[%clk 01:59:16]} {[%emt
00:01:01]} 2. Nc3 {[%clk 01:59:13]} {[%emt 00:00:23]} c5 {[%clk 01:59:16]}
{[%emt 00:00:15]} 3. g3 {[%clk 01:59:22]} {[%emt 00:00:06]} Bg7 {[%clk
01:59:23]} {[%emt 00:00:08]} 4. Bg2 {[%clk 01:59:32]} {[%emt 00:00:05]} Nc6
{[%clk 01:59:33]} {[%emt 00:00:05]} 5. a3 {[%clk 01:59:43]} {[%emt 00:00:04]}
e6 {[%clk 01:59:34]} {[%emt 00:00:14]} 6. b4 {[%clk 01:59:52]} {[%emt
00:00:06]} Nxb4 {[%clk 01:59:23]} {[%emt 00:00:27]} 7. axb4 {[%clk 01:59:59]}
{[%emt 00:00:08]} cxb4 {[%clk 01:59:34]} {[%emt 00:00:03]} 8. Nb5 {[%clk
02:00:01]} {[%emt 00:00:13]} Bxa1 {[%clk 01:57:52]} {[%emt 00:01:58]} 9. Qa4
{[%clk 02:00:05]} {[%emt 00:00:10]} Bf6 {[%clk 01:48:08]} {[%emt 00:09:59]} 10.
Qxb4 {[%clk 01:59:47]} {[%emt 00:00:33]} Be7 {[%clk 01:43:43]} {[%emt
00:04:41]} 11. c5 {[%clk 01:53:27]} {[%emt 00:06:35]} f6 {[%clk 01:05:05]}
{[%emt 00:38:53]} 12. d4 {[%clk 01:30:12]} {[%emt 00:23:29]} a6 {[%clk
00:35:35]} {[%emt 00:29:46]} 13. Qa3 {[%clk 01:15:26]} {[%emt 00:15:00]} Rb8
{[%clk 00:29:20]} {[%emt 00:06:31]} 14. Bf4 {[%clk 01:08:49]} {[%emt 00:06:51]}
e5 {[%clk 00:29:30]} {[%emt 00:00:06]} 15. dxe5 {[%clk 01:08:18]} {[%emt
00:00:45]} axb5 {[%clk 00:29:35]} {[%emt 00:00:11]} 16. exf6 {[%clk 01:05:31]}
{[%emt 00:03:02]} Nxf6 {[%clk 00:29:41]} {[%emt 00:00:10]} 17. Bxb8 {[%clk
00:51:32]} {[%emt 00:14:13]} b6 {[%clk 00:29:52]} {[%emt 00:00:05]} 18. Bd6
{[%clk 00:40:38]} {[%emt 00:11:09]} bxc5 19. Bxc5 1/2-1/2

[Event "BPB Limburg Open 2019 Group A"]
[Site "Maastricht, Netherlands"]
[Date "2019.06.10"]
[Round "6.2"]
[White "Van Wely, Loek"]
[Black "Bok, Benjamin"]
[Result "1/2-1/2"]
[TimeControl "2h + 15 sec/move"]
[WhiteFideId "1000268"]
[BlackFideId "1017063"]
[WhiteElo "2604"]
[BlackElo "2638"]

1. d4 {[%clk 01:53:19]} {[%emt 00:07:09]} Nf6 {[%clk 02:00:07]} {[%emt
00:00:24]} 2. Nf3 {[%clk 01:53:07]} {[%emt 00:00:27]} d5 {[%clk 01:59:04]}
{[%emt 00:01:18]} 3. c4 {[%clk 01:53:15]} {[%emt 00:00:07]} e6 {[%clk
01:59:16]} {[%emt 00:00:03]} 4. g3 {[%clk 01:53:25]} {[%emt 00:00:05]} Bb4+
{[%clk 01:59:28]} {[%emt 00:00:04]} 5. Bd2 {[%clk 01:53:35]} {[%emt 00:00:04]}
Be7 {[%clk 01:59:37]} {[%emt 00:00:05]} 6. Bg2 {[%clk 01:53:45]} {[%emt
00:00:05]} O-O {[%clk 01:59:49]} {[%emt 00:00:04]} 7. O-O {[%clk 01:53:54]}
{[%emt 00:00:06]} c6 {[%clk 01:59:58]} {[%emt 00:00:05]} 8. Qc2 {[%clk
01:53:58]} {[%emt 00:00:11]} Nbd7 {[%clk 01:59:58]} {[%emt 00:00:15]} 9. Rd1
{[%clk 01:53:53]} {[%emt 00:00:21]} b6 {[%clk 01:59:53]} {[%emt 00:00:20]} 10.
b3 {[%clk 01:54:02]} {[%emt 00:00:05]} Ba6 {[%clk 01:55:45]} {[%emt 00:04:23]}
11. Bf4 {[%clk 01:50:52]} {[%emt 00:03:25]} Rc8 {[%clk 01:54:08]} {[%emt
00:01:53]} 12. Nc3 {[%clk 01:50:39]} {[%emt 00:00:28]} dxc4 {[%clk 01:52:47]}
{[%emt 00:01:36]} 13. e4 {[%clk 01:50:42]} {[%emt 00:00:12]} Bb4 {[%clk
01:52:47]} {[%emt 00:00:14]} 14. Nd2 {[%clk 01:48:02]} {[%emt 00:02:55]} Qe7
{[%clk 01:51:54]} {[%emt 00:01:08]} 15. Nxc4 {[%clk 01:47:28]} {[%emt
00:00:49]} Bxc4 {[%clk 01:52:02]} {[%emt 00:00:08]} 16. bxc4 {[%clk 01:47:39]}
{[%emt 00:00:03]} e5 {[%clk 01:52:10]} {[%emt 00:00:07]} 17. dxe5 {[%clk
01:44:21]} {[%emt 00:03:33]} Nxe5 {[%clk 01:51:51]} {[%emt 00:00:34]} 18. Ne2
{[%clk 01:40:55]} {[%emt 00:03:41]} Bc5 {[%clk 00:51:13]} {[%emt 01:00:53]} 19.
Nd4 {[%clk 01:34:07]} {[%emt 00:07:02]} Rfd8 {[%clk 00:35:05]} {[%emt
00:16:23]} 20. Nb3 {[%clk 01:10:19]} {[%emt 00:24:03]} h6 {[%clk 00:33:53]}
{[%emt 00:01:27]} 21. Nxc5 {[%clk 00:54:13]} {[%emt 00:16:22]} Qxc5 {[%clk
00:33:58]} {[%emt 00:00:10]} 22. Rac1 {[%clk 00:52:55]} {[%emt 00:01:32]} Rxd1+
{[%clk 00:15:30]} {[%emt 00:18:44]} 23. Qxd1 {[%clk 00:46:21]} {[%emt
00:06:48]} Re8 {[%clk 00:13:56]} {[%emt 00:01:49]} 24. h3 {[%clk 00:28:46]}
{[%emt 00:17:50]} Qa3 {[%clk 00:10:54]} {[%emt 00:03:18]} 25. Rc2 {[%clk
00:18:28]} {[%emt 00:10:33]} Qd3 {[%clk 00:08:41]} {[%emt 00:02:28]} 26. Rd2
{[%clk 00:11:04]} {[%emt 00:07:39]} Qxc4 {[%clk 00:08:50]} {[%emt 00:00:07]}
1/2-1/2

[Event "BPB Limburg Open 2019 Group A"]
[Site "Maastricht, Netherlands"]
[Date "2019.06.10"]
[Round "6.3"]
[White "Sadzikowski, Daniel"]
[Black "Beerdsen, Thomas"]
[Result "0-1"]
[TimeControl "2h + 15 sec/move"]
[WhiteFideId "1132253"]
[BlackFideId "1030108"]
[WhiteElo "2510"]
[BlackElo "2488"]

1. e4 {[%clk 01:59:21]} {[%emt 00:00:59]} c5 {[%clk 02:00:27]} {[%emt
00:00:13]} 2. Nf3 {[%clk 01:59:24]} {[%emt 00:00:12]} e6 {[%clk 02:00:36]}
{[%emt 00:00:06]} 3. d4 {[%clk 01:59:31]} {[%emt 00:00:08]} cxd4 {[%clk
02:00:46]} {[%emt 00:00:05]} 4. Nxd4 {[%clk 01:59:42]} {[%emt 00:00:05]} Nc6
{[%clk 02:00:55]} {[%emt 00:00:05]} 5. Nc3 {[%clk 01:59:48]} {[%emt 00:00:09]}
Qc7 {[%clk 02:01:05]} {[%emt 00:00:05]} 6. g3 {[%clk 01:59:53]} {[%emt
00:00:10]} a6 {[%clk 01:59:19]} {[%emt 00:02:01]} 7. Bg2 {[%clk 02:00:03]}
{[%emt 00:00:05]} Nf6 {[%clk 01:59:28]} {[%emt 00:00:06]} 8. O-O {[%clk
02:00:07]} {[%emt 00:00:11]} h5 {[%clk 01:59:36]} {[%emt 00:00:07]} 9. Bg5
{[%clk 02:00:13]} {[%emt 00:00:09]} Ne5 {[%clk 01:59:46]} {[%emt 00:00:05]} 10.
a4 {[%clk 01:56:07]} {[%emt 00:04:21]} Bc5 {[%clk 01:58:59]} {[%emt 00:01:03]}
11. a5 {[%clk 01:38:14]} {[%emt 00:18:09]} d6 {[%clk 01:45:50]} {[%emt
00:13:23]} 12. Na4 {[%clk 01:36:12]} {[%emt 00:02:17]} Ba7 {[%clk 01:40:51]}
{[%emt 00:05:14]} 13. Nb6 {[%clk 01:33:09]} {[%emt 00:03:17]} Bxb6 {[%clk
01:38:37]} {[%emt 00:02:30]} 14. axb6 {[%clk 01:33:19]} {[%emt 00:00:05]} Qxb6
{[%clk 01:38:47]} {[%emt 00:00:05]} 15. b3 {[%clk 01:23:57]} {[%emt 00:09:37]}
Bd7 {[%clk 01:36:19]} {[%emt 00:02:42]} 16. h3 {[%clk 01:23:50]} {[%emt
00:00:22]} Rd8 {[%clk 01:30:52]} {[%emt 00:05:42]} 17. Be3 {[%clk 01:21:09]}
{[%emt 00:02:56]} Qc7 {[%clk 01:30:49]} {[%emt 00:00:18]} 18. c4 {[%clk
01:21:16]} {[%emt 00:00:08]} Nc6 {[%clk 01:23:55]} {[%emt 00:07:08]} 19. Ne2
{[%clk 01:18:48]} {[%emt 00:02:43]} Ne7 {[%clk 01:15:31]} {[%emt 00:08:40]} 20.
Nc3 {[%clk 01:13:16]} {[%emt 00:05:47]} Nc8 {[%clk 00:53:36]} {[%emt 00:22:10]}
21. Qe2 {[%clk 01:08:39]} {[%emt 00:04:52]} Bc6 {[%clk 00:48:53]} {[%emt
00:04:58]} 22. Rfc1 {[%clk 01:08:25]} {[%emt 00:00:29]} Kf8 {[%clk 00:43:51]}
{[%emt 00:05:17]} 23. b4 {[%clk 01:06:52]} {[%emt 00:01:48]} Be8 {[%clk
00:43:20]} {[%emt 00:00:46]} 24. b5 {[%clk 01:05:53]} {[%emt 00:01:15]} axb5
{[%clk 00:41:09]} {[%emt 00:02:26]} 25. cxb5 {[%clk 01:00:46]} {[%emt
00:05:22]} Qb8 {[%clk 00:39:57]} {[%emt 00:01:26]} 26. f4 {[%clk 00:47:35]}
{[%emt 00:13:26]} Nd7 {[%clk 00:38:08]} {[%emt 00:02:04]} 27. f5 {[%clk
00:46:55]} {[%emt 00:00:55]} Ne5 {[%clk 00:35:34]} {[%emt 00:02:49]} 28. Ra3
{[%clk 00:33:26]} {[%emt 00:13:44]} Ne7 {[%clk 00:28:15]} {[%emt 00:07:33]} 29.
fxe6 {[%clk 00:29:58]} {[%emt 00:03:43]} fxe6 {[%clk 00:28:23]} {[%emt
00:00:07]} 30. Ba7 {[%clk 00:27:35]} {[%emt 00:02:37]} Qc7 {[%clk 00:28:02]}
{[%emt 00:00:36]} 31. Qf2+ {[%clk 00:27:00]} {[%emt 00:00:51]} Kg8 {[%clk
00:27:36]} {[%emt 00:00:41]} 32. Bb6 {[%clk 00:26:57]} {[%emt 00:00:18]} Qd7
{[%clk 00:27:41]} {[%emt 00:00:10]} 33. Bxd8 {[%clk 00:26:23]} {[%emt
00:00:49]} Qxd8 {[%clk 00:27:45]} {[%emt 00:00:10]} 34. Qd4 {[%clk 00:23:23]}
{[%emt 00:03:14]} N7g6 {[%clk 00:25:15]} {[%emt 00:02:46]} 35. h4 {[%clk
00:23:00]} {[%emt 00:00:39]} Qf6 {[%clk 00:23:17]} {[%emt 00:02:13]} 36. Kh1
{[%clk 00:17:08]} {[%emt 00:06:06]} Kh7 {[%clk 00:19:41]} {[%emt 00:03:51]} 37.
Rf1 {[%clk 00:15:58]} {[%emt 00:01:25]} Qe7 {[%clk 00:17:00]} {[%emt 00:02:57]}
38. Ra8 {[%clk 00:15:53]} {[%emt 00:00:21]} Nxh4 {[%clk 00:12:12]} {[%emt
00:05:03]} 39. Bh3 {[%clk 00:07:19]} {[%emt 00:08:49]} Nhg6 {[%clk 00:10:41]}
{[%emt 00:01:46]} 40. Qe3 {[%clk 00:06:52]} {[%emt 00:00:42]} h4 {[%clk
00:09:06]} {[%emt 00:01:49]} 41. Rf2 {[%clk 00:06:58]} {[%emt 00:00:10]} Bd7
{[%clk 00:08:32]} {[%emt 00:00:49]} 42. Rxh8+ {[%clk 00:07:07]} {[%emt
00:00:06]} Kxh8 {[%clk 00:08:37]} {[%emt 00:00:10]} 43. Kh2 {[%clk 00:06:17]}
{[%emt 00:01:04]} Qd8 {[%clk 00:07:51]} {[%emt 00:01:01]} 44. Rf1 {[%clk
00:04:52]} {[%emt 00:01:41]} Kg8 {[%clk 00:06:55]} {[%emt 00:01:10]} 45. Rd1
{[%clk 00:03:20]} {[%emt 00:01:47]} Qf6 {[%clk 00:06:47]} {[%emt 00:00:23]} 46.
Rxd6 {[%clk 00:02:42]} {[%emt 00:00:54]} Nc4 {[%clk 00:06:18]} {[%emt
00:00:44]} 47. e5 {[%clk 00:02:28]} {[%emt 00:00:29]} Ngxe5 {[%clk 00:06:10]}
{[%emt 00:00:22]} 48. Ne4 {[%clk 00:02:21]} {[%emt 00:00:22]} Nf3+ {[%clk
00:06:00]} {[%emt 00:00:26]} 0-1